bitfinex/quotes_BTCUSD_20241128
["timestamp","ask_amount","ask_price","bid_price","bid_amount"]
[1732799040733,0.104876,95350.0,95349.0,0.003]
[1732799041175,0.209747,95353.0,95349.0,0.007]
[1732799041399,0.104876,95351.0,95349.0,0.003]
[1732799041627,0.0798294,95368.0,95349.0,0.003]
[1732799041971,0.001,95350.0,95349.0,0.113877]
[1732799042569,0.10487,95356.0,95349.0,0.104877]
[1732799042775,0.104869,95357.0,95349.0,0.003]
[1732799042994,0.209719,95366.0,95349.0,0.003]
[1732799043242,0.01135611,95371.0,95349.0,0.003]
[1732799043243,0.104875,95352.0,95349.0,0.003]
[1732799043458,0.209746,95354.0,95346.0,0.104881]
[1732799043701,0.104874,95353.0,95349.0,0.003]
[1732799044170,0.104874,95353.0,95346.0,0.104881]
[1732799044650,0.01135611,95371.0,95349.0,0.003]
[1732799044651,0.209741,95356.0,95349.0,0.003]
[1732799044890,0.10487,95357.0,95349.0,0.003]
[1732799045112,0.0017244,95363.0,95349.0,0.00485613]
[1732799045330,0.104868,95358.0,95352.0,0.104874]
[1732799045547,0.209729,95361.0,95350.0,0.21160808]
[1732799045995,0.314596,95360.0,95351.0,0.104875]
[1732799046258,0.104869,95357.0,95351.0,0.0018561]
[1732799046479,0.104868,95358.0,95350.0,0.209752]
[1732799046714,0.104869,95357.0,95350.0,0.31648412]
[1732799046942,0.104864,95361.0,95351.0,0.104875]
[1732799047175,0.104868,95358.0,95351.0,0.10673109]
[1732799047412,0.209729,95361.0,95350.0,0.00185612]
[1732799047636,0.104869,95357.0,95351.0,0.104875]
[1732799047863,0.104867,95359.0,95350.0,0.209751]
[1732799048091,0.104865,95360.0,95350.0,0.21160811]
[1732799048364,0.001724,95357.0,95352.0,0.104874]
[1732799048845,0.001724,95357.0,95351.0,0.002]
[1732799049095,0.001724,95357.0,95356.0,0.10487]
[1732799049324,0.0017244,95363.0,95356.0,0.00185591]
[1732799049537,0.0017244,95363.0,95362.0,0.104863]
[1732799050710,0.0017244,95363.0,95362.0,0.20770821]
[1732799050991,0.0017244,95363.0,95362.0,0.48576407]
[1732799051241,0.0017244,95363.0,95362.0,0.48390821]
[1732799051936,0.0027244,95363.0,95362.0,0.49290821]
[1732799052389,0.0027244,95363.0,95362.0,0.49090821]
[1732799052628,0.0027244,95363.0,95362.0,0.5073101]
[1732799054658,0.0027244,95363.0,95362.0,0.25260189]
[1732799055140,0.1075864,95363.0,95362.0,0.02540189]
[1732799055142,0.1075864,95363.0,95362.0,0.014]
[1732799056058,0.1075864,95363.0,95362.0,0.009]
[1732799056268,0.1075864,95363.0,95343.0,0.09379739]
[1732799056269,0.104881,95346.0,95343.0,0.09379739]
[1732799056490,0.00166253,95358.0,95340.0,0.09393416]
[1732799056711,0.104887,95340.0,95339.0,0.09393416]
[1732799056946,0.104887,95340.0,95330.0,0.0759]
[1732799056947,0.00166253,95356.0,95333.0,0.09393416]
[1732799057181,0.104894,95334.0,95333.0,0.09393416]
[1732799057400,0.209782,95337.0,95331.0,0.53466307]
[1732799057625,0.104892,95336.0,95335.0,0.09402422]
[1732799057861,0.03329528,95336.0,95332.0,0.09402422]
[1732799058103,0.03329528,95336.0,95318.0,0.28180248]
[1732799058104,0.00166253,95336.0,95320.0,0.09404213]
[1732799058346,0.001,95334.0,95333.0,0.009]
[1732799058568,0.15860405,95334.0,95333.0,0.009]
[1732799058823,0.104908,95321.0,95320.0,0.09404213]
[1732799059340,0.104908,95321.0,95319.0,0.09404213]
[1732799059595,0.104908,95321.0,95319.0,0.14103633]
[1732799059847,0.0098143,95340.0,95333.0,0.001]
[1732799060099,0.104894,95334.0,95333.0,0.001]
[1732799060338,0.419558,95338.0,95327.0,0.09411652]
[1732799060339,0.1049,95328.0,95327.0,0.09411652]
[1732799060565,0.1049,95328.0,95325.0,0.14117478]
[1732799060802,0.209803,95328.0,95325.0,0.14118092]
[1732799061046,0.314703,95328.0,95327.0,0.09412122]
[1732799061517,0.104902,95327.0,95326.0,0.09412122]
[1732799062231,0.104903,95326.0,95325.0,0.005]
[1732799062477,0.209804,95327.0,95323.0,0.09412122]
[1732799062750,0.104905,95324.0,95323.0,0.09412122]
[1732799062983,0.104907,95322.0,95321.0,0.14118092]
[1732799063224,0.104907,95322.0,95321.0,0.48850735]
[1732799063482,0.104908,95321.0,95320.0,0.09494007]
[1732799063723,0.104908,95321.0,95320.0,0.0008615]
[1732799066015,0.105908,95321.0,95320.0,0.0088615]
[1732799066458,0.105908,95321.0,95320.0,0.0128615]
[1732799067395,0.001,95321.0,95320.0,0.0128615]
[1732799067636,0.001,95321.0,95320.0,0.1177705]
[1732799068166,0.001,95321.0,95320.0,0.11962716]
[1732799068859,0.001,95321.0,95320.0,0.01471816]
[1732799069092,0.001,95321.0,95320.0,0.11962716]
[1732799071654,0.001,95321.0,95320.0,0.22247237]
[1732799071869,0.0098379,95341.0,95337.0,0.104891]
[1732799072120,0.209727,95362.0,95335.0,0.104892]
[1732799072382,0.104886,95342.0,95336.0,0.10674734]
[1732799072610,0.104887,95341.0,95336.0,0.104891]
[1732799072835,0.209769,95343.0,95336.0,0.104891]
[1732799073078,0.104887,95340.0,95334.0,0.104893]
[1732799073306,0.104887,95340.0,95334.0,0.10674942]
[1732799073567,0.104889,95339.0,95334.0,0.00185642]
[1732799073799,0.104888,95340.0,95335.0,0.104893]
[1732799074535,0.104888,95340.0,95334.0,0.00185642]
[1732799074536,0.104888,95339.0,95334.0,0.00185642]
[1732799074787,0.209765,95345.0,95336.0,0.104891]
[1732799074788,0.209768,95343.0,95336.0,0.104891]
[1732799075021,0.104886,95342.0,95336.0,0.1107474]
[1732799075243,0.209747,95353.0,95335.0,0.209786]
[1732799075459,0.211478,95350.0,95338.0,0.209779]
[1732799075682,0.001723,95350.0,95345.0,0.104881]
[1732799075908,0.001723,95350.0,95344.0,0.104882]
[1732799076129,0.001723,95350.0,95341.0,0.00185626]
[1732799076363,0.001723,95350.0,95346.0,0.10488]
[1732799076577,0.001723,95350.0,95342.0,0.00185623]
[1732799077294,0.1066,95350.0,95342.0,0.21162623]
[1732799077513,0.1066,95350.0,95345.0,0.104881]
[1732799077737,0.1066,95350.0,95344.0,0.104882]
[1732799077738,0.001723,95350.0,95344.0,0.104882]
[1732799077954,0.104878,95349.0,95344.0,0.104882]
[1732799078463,0.001723,95350.0,95343.0,0.104883]
[1732799078681,0.001723,95350.0,95341.0,0.09397092]
[1732799078902,0.001723,95350.0,95344.0,0.104883]
[1732799079382,0.001723,95350.0,95344.0,0.110883]
[1732799079595,0.001723,95350.0,95344.0,0.104883]
[1732799080083,0.001723,95350.0,95338.0,0.09396073]
[1732799080326,0.001723,95350.0,95339.0,0.09396073]
[1732799080560,0.001723,95350.0,95338.0,0.09396073]
[1732799080779,0.001723,95350.0,95344.0,0.004]
[1732799081474,0.1066,95350.0,95340.0,0.104886]
[1732799081697,0.104878,95349.0,95341.0,0.00132546]
[1732799081929,0.104878,95349.0,95344.0,0.004]
[1732799082158,0.104878,95349.0,95342.0,0.00185628]
[1732799082619,0.001723,95350.0,95342.0,0.00185628]
[1732799082867,0.001723,95350.0,95339.0,0.09396073]
[1732799082868,0.209755,95349.0,95339.0,0.09396073]
[1732799083101,0.209755,95349.0,95337.0,0.14094109]
[1732799083102,0.104888,95340.0,95337.0,0.09396073]
[1732799083324,0.104888,95340.0,95336.0,0.15]
[1732799083543,0.001723,95350.0,95339.0,0.09396304]
[1732799083759,0.104884,95343.0,95339.0,0.09396304]
[1732799083967,0.209764,95345.0,95339.0,0.09396304]
[1732799084174,0.209757,95348.0,95339.0,0.09396304]
[1732799084396,0.001723,95350.0,95339.0,0.09396304]
[1732799084603,0.104883,95344.0,95339.0,0.09396304]
[1732799084853,0.104883,95344.0,95336.0,0.003]
[1732799084854,0.001723,95350.0,95336.0,0.09696304]
[1732799085072,0.104891,95337.0,95336.0,0.003]
[1732799085292,0.104891,95337.0,95332.0,0.09396304]
[1732799085293,0.104884,95343.0,95342.0,0.004]
[1732799086178,0.104887,95340.0,95339.0,0.001]
[1732799086407,0.104887,95340.0,95339.0,0.005]
[1732799086634,0.104887,95340.0,95339.0,0.001]
[1732799087137,0.209773,95342.0,95331.0,0.09581952]
[1732799087345,0.104889,95339.0,95336.0,0.004]
[1732799087601,0.209728,95362.0,95336.0,0.004]
[1732799087828,0.10489,95338.0,95336.0,0.004]
[1732799088042,0.104892,95336.0,95331.0,0.09396304]
[1732799088280,0.209778,95339.0,95330.0,0.01146406]
[1732799088281,0.10489,95338.0,95330.0,0.1054271]
[1732799088496,0.104892,95336.0,95330.0,0.01332056]
[1732799088744,0.104892,95336.0,95329.0,0.09581956]
[1732799088959,0.104892,95336.0,95329.0,0.09396304]
[1732799089176,0.104892,95336.0,95329.0,0.09581956]
[1732799089621,0.209779,95339.0,95330.0,0.09396304]
[1732799089622,0.104891,95337.0,95330.0,0.09396304]
[1732799089830,0.104892,95336.0,95330.0,0.09396304]
[1732799090070,0.10489,95338.0,95330.0,0.09396304]
[1732799090296,0.10489,95338.0,95330.0,0.09996304]
[1732799090524,0.08662377,95337.0,95330.0,0.09396304]
[1732799090746,0.10489,95338.0,95330.0,0.09396304]
[1732799090930,0.10489,95338.0,95330.0,0.09796304]
[1732799091191,0.104889,95339.0,95331.0,0.104897]
[1732799091407,0.10489,95338.0,95331.0,0.00185649]
[1732799091621,0.10489,95338.0,95330.0,0.09931437]
[1732799091842,0.10489,95338.0,95336.0,0.003]
[1732799092099,0.209757,95348.0,95336.0,0.003]
[1732799092309,0.10489,95338.0,95336.0,0.003]
[1732799092528,0.10489,95338.0,95330.0,0.09396304]
[1732799092747,0.209775,95340.0,95330.0,0.09698894]
[1732799092966,0.20976,95347.0,95331.0,0.21283046]
[1732799093179,0.20976,95347.0,95332.0,0.209793]
[1732799093450,0.20976,95347.0,95331.0,0.00303546]
[1732799093451,0.104883,95344.0,95335.0,0.104892]
[1732799093677,0.104886,95342.0,95334.0,0.104893]
[1732799093936,0.104887,95341.0,95332.0,0.10675246]
[1732799094168,0.10489,95338.0,95331.0,0.002]
[1732799094605,0.10489,95338.0,95330.0,0.2007434]
[1732799094838,0.10489,95338.0,95336.0,0.002]
[1732799095977,0.10489,95338.0,95331.0,0.09398894]
[1732799096238,0.20976,95347.0,95331.0,0.09598894]
[1732799096473,0.104886,95341.0,95336.0,0.003]
[1732799096689,0.104891,95337.0,95336.0,0.003]
[1732799097352,0.104892,95336.0,95333.0,0.0940179]
[1732799097611,0.001723,95350.0,95333.0,0.0940179]
[1732799097867,0.001723,95350.0,95329.0,0.01146918]
[1732799097868,0.15342106,95343.0,95325.0,0.0940179]
[1732799098104,0.104904,95325.0,95324.0,0.09405497]
[1732799098334,0.209788,95334.0,95322.0,0.09405497]
[1732799098597,0.0017234,95343.0,95321.0,0.09491667]
[1732799098598,0.104905,95324.0,95321.0,0.09491667]
[1732799098854,0.104906,95323.0,95322.0,0.01148865]
[1732799099057,0.209771,95342.0,95321.0,0.0008617]
[1732799099058,0.104907,95322.0,95321.0,0.0008617]
[1732799099493,0.104907,95322.0,95321.0,0.01197051]
[1732799099741,0.104907,95322.0,95321.0,0.0008617]
[1732799100431,0.104907,95322.0,95321.0,0.09495025]
[1732799100853,0.104907,95322.0,95321.0,0.10095025]
[1732799101597,0.104907,95322.0,95321.0,0.10103144]
[1732799102076,0.104907,95322.0,95321.0,0.10403144]
[1732799102290,0.104907,95322.0,95321.0,0.0098617]
[1732799102820,0.29518369,95322.0,95321.0,0.0098617]
[1732799103065,0.29352116,95322.0,95321.0,0.0098617]
[1732799103316,0.20775221,95322.0,95321.0,0.0098617]
[1732799103569,0.28921474,95322.0,95321.0,0.0098617]
[1732799103779,0.33615221,95322.0,95321.0,0.0038617]
[1732799103996,0.33615221,95322.0,95321.0,0.0008617]
[1732799104218,0.48715221,95322.0,95321.0,0.0008617]
[1732799104441,0.63298972,95322.0,95321.0,0.0008617]
[1732799104939,0.62698972,95322.0,95321.0,0.0018617]
[1732799105193,0.35115826,95322.0,95321.0,0.0018617]
[1732799105411,0.112907,95322.0,95321.0,0.0018617]
[1732799106070,0.108907,95322.0,95321.0,0.0018617]
[1732799106554,0.21341474,95322.0,95321.0,0.0018617]
[1732799106988,0.21341474,95322.0,95321.0,0.0008617]
[1732799106989,0.20941474,95322.0,95321.0,0.0008617]
[1732799107204,0.28811474,95322.0,95321.0,0.0008617]
[1732799107429,0.42203568,95322.0,95321.0,0.0008617]
[1732799107650,0.57203568,95322.0,95321.0,0.0008617]
[1732799107922,0.48815221,95322.0,95321.0,0.0008617]
[1732799108363,0.49215221,95322.0,95321.0,0.0018617]
[1732799108800,0.33415221,95322.0,95321.0,0.0008617]
[1732799109474,0.33715221,95322.0,95321.0,0.0008617]
[1732799110236,0.111907,95322.0,95321.0,0.0008617]
[1732799111570,0.104907,95322.0,95321.0,0.0008617]
[1732799111805,0.104907,95322.0,95321.0,0.0018617]
[1732799112036,0.104907,95322.0,95321.0,0.0028617]
[1732799112540,0.104907,95322.0,95321.0,0.0018617]
[1732799113466,0.104907,95322.0,95321.0,0.0008617]
[1732799113693,0.105907,95322.0,95321.0,0.0008617]
[1732799115516,0.001,95322.0,95321.0,0.0008617]
[1732799115774,0.209793,95332.0,95321.0,0.0008617]
[1732799115775,0.104899,95330.0,95324.0,0.104904]
[1732799116014,0.104899,95330.0,95321.0,0.0791617]
[1732799116243,0.104899,95330.0,95322.0,0.209815]
[1732799116460,0.209793,95332.0,95321.0,0.0801617]
[1732799116677,0.104903,95327.0,95321.0,0.09057535]
[1732799116890,0.001,95330.0,95321.0,0.09057535]
[1732799117115,0.001,95322.0,95321.0,0.19734003]
[1732799117548,0.104901,95328.0,95323.0,0.104906]
[1732799117784,0.001,95330.0,95325.0,0.104903]
[1732799118027,0.001,95330.0,95321.0,0.09243203]
[1732799118294,0.001,95330.0,95329.0,0.104899]
[1732799118501,0.0098132,95341.0,95322.0,0.00185668]
[1732799118502,0.0098132,95341.0,95324.0,0.15]
[1732799118714,0.1066074,95343.0,95338.0,0.0757]
[1732799118971,0.0017234,95343.0,95339.0,0.209777]
[1732799119208,0.0017234,95343.0,95338.0,0.0757]
[1732799119209,0.0017234,95343.0,95342.0,0.104885]
[1732799119438,0.0017234,95343.0,95338.0,0.0757]
[1732799120183,0.104886,95342.0,95338.0,0.07755636]
[1732799120419,0.2114924,95343.0,95338.0,0.0757]
[1732799120904,0.0017234,95343.0,95338.0,0.0757]
[1732799121124,0.0017234,95343.0,95338.0,0.180589]
[1732799121338,0.104885,95342.0,95338.0,0.0787]
[1732799121550,0.1066074,95343.0,95338.0,0.183589]
[1732799121770,0.1066074,95343.0,95342.0,0.003]
[1732799122228,0.1066074,95343.0,95338.0,0.12036349]
[1732799122229,0.0017234,95343.0,95338.0,0.12036349]
[1732799122446,0.0017234,95343.0,95338.0,0.01147449]
[1732799122677,0.0017234,95343.0,95338.0,0.01347449]
[1732799122926,0.0017234,95343.0,95342.0,0.104885]
[1732799123430,0.0017234,95343.0,95339.0,0.42140932]
[1732799123431,0.0017234,95343.0,95340.0,0.209775]
[1732799123672,0.0017232,95342.0,95341.0,0.104886]
[1732799124373,0.0017232,95342.0,95340.0,0.00185626]
[1732799124596,0.104888,95340.0,95338.0,0.006]
[1732799124814,0.104888,95340.0,95334.0,0.20989103]
[1732799124815,0.1066092,95342.0,95339.0,0.00655853]
[1732799125069,0.0017232,95342.0,95341.0,0.004]
[1732799125425,0.0017232,95342.0,95341.0,0.11144453]
[1732799125647,0.0017232,95342.0,95341.0,0.00655853]
[1732799127215,0.1066082,95342.0,95341.0,0.00655853]
[1732799127432,0.0017232,95342.0,95341.0,0.01055853]
[1732799127649,0.1066082,95342.0,95341.0,0.01055853]
[1732799128088,0.1066082,95342.0,95341.0,0.01255853]
[1732799128713,0.1066082,95342.0,95341.0,0.00855853]
[1732799128924,0.0017232,95342.0,95341.0,0.00655853]
[1732799129146,0.0017232,95342.0,95341.0,0.01055853]
[1732799129373,0.0017232,95342.0,95341.0,0.01255853]
[1732799129374,0.1066082,95342.0,95341.0,0.01255853]
[1732799130443,0.1066082,95342.0,95341.0,0.01055853]
[1732799130644,0.1066082,95342.0,95341.0,0.00655853]
[1732799130845,0.1066082,95342.0,95341.0,0.01055853]
[1732799131064,0.0017232,95342.0,95341.0,0.01055853]
[1732799131286,0.1066082,95342.0,95341.0,0.00655853]
[1732799131509,0.1066082,95342.0,95341.0,0.00955853]
[1732799131754,0.11760854,95342.0,95341.0,0.01155853]
[1732799132386,0.11760854,95342.0,95341.0,0.00955853]
[1732799132810,0.42811198,95342.0,95341.0,0.00782893]
[1732799133025,0.41811198,95342.0,95341.0,0.00782893]
[1732799133246,0.41811198,95342.0,95341.0,0.005]
[1732799133454,0.56811198,95342.0,95341.0,0.005]
[1732799133669,0.104907,95322.0,95309.0,0.01049742]
[1732799133914,0.35982301,95322.0,95299.0,0.09397951]
[1732799134147,0.37020582,95322.0,95300.0,0.01049796]
[1732799134377,0.37020582,95322.0,95301.0,0.01049873]
[1732799134605,0.37020582,95322.0,95302.0,0.01049873]
[1732799134822,0.11528981,95322.0,95303.0,0.01049873]
[1732799135036,0.11528981,95322.0,95304.0,0.01210958]
[1732799135247,0.11528981,95322.0,95305.0,0.01049873]
[1732799135449,0.11528981,95322.0,95306.0,0.01049873]
[1732799135669,0.12095234,95322.0,95307.0,0.01049873]
[1732799135876,0.12095234,95322.0,95308.0,0.01049873]
[1732799136093,0.12228981,95322.0,95309.0,0.01049873]
[1732799136300,0.12228981,95322.0,95310.0,0.01049873]
[1732799136517,0.12228981,95322.0,95305.0,0.00185699]
[1732799136518,0.11928981,95322.0,95311.0,0.01049873]
[1732799136740,0.11928981,95322.0,95312.0,0.01049873]
[1732799136953,0.11728981,95322.0,95306.0,0.104924]
[1732799137155,0.11728981,95322.0,95311.0,0.0765]
[1732799137367,0.12128981,95322.0,95312.0,0.01049795]
[1732799137589,0.12128981,95322.0,95311.0,0.0765]
[1732799137799,0.12128981,95322.0,95303.0,0.0765]
[1732799138034,0.11728981,95322.0,95303.0,0.0765]
[1732799138449,0.11728981,95322.0,95303.0,0.181428]
[1732799138658,0.11728981,95322.0,95303.0,0.0765]
[1732799138892,0.26350846,95322.0,95304.0,0.01049786]
[1732799139076,0.26184593,95322.0,95305.0,0.01049786]
[1732799139525,0.55954593,95322.0,95306.0,0.01049786]
[1732799139745,0.55954593,95322.0,95296.0,0.09397911]
[1732799139746,0.58058817,95322.0,95297.0,0.01049786]
[1732799139981,0.58058817,95322.0,95290.0,0.000862]
[1732799140200,0.58058817,95322.0,95320.0,2e-07]
[1732799140201,0.287908,95321.0,95320.0,2e-07]
[1732799140423,0.104941,95291.0,95290.0,0.000862]
[1732799141178,0.11526818,95291.0,95290.0,0.000862]
[1732799141402,0.21977592,95291.0,95290.0,0.000862]
[1732799141623,0.22011339,95291.0,95290.0,0.000862]
[1732799143675,0.21811339,95291.0,95290.0,0.000862]
[1732799143931,0.32449502,95291.0,95290.0,0.001862]
[1732799144154,0.32549502,95291.0,95290.0,0.001862]
[1732799144391,0.22711339,95291.0,95290.0,0.001862]
[1732799145978,0.22611339,95291.0,95290.0,0.001862]
[1732799146429,0.23111339,95291.0,95290.0,0.001862]
[1732799149034,0.24997239,95291.0,95272.0,0.0008649]
[1732799149273,0.287969,95266.0,95265.0,9e-07]
[1732799149494,0.40081421,95266.0,95265.0,9e-07]
[1732799149715,0.47861421,95266.0,95265.0,9e-07]
[1732799149954,0.4886858,95266.0,95265.0,9e-07]
[1732799150179,0.59151726,95266.0,95265.0,9e-07]
[1732799150413,0.254984,95252.0,95251.0,0.0004]
[1732799150652,0.38082921,95252.0,95251.0,0.0004]
[1732799150911,0.39085877,95252.0,95251.0,0.0004]
[1732799151367,0.105006,95232.0,95226.0,0.0008616]
[1732799151609,0.20785121,95232.0,95226.0,0.0008616]
[1732799151828,0.21954294,95232.0,95226.0,0.0008616]
[1732799152075,0.21788041,95232.0,95226.0,0.0008616]
[1732799152292,0.1150352,95232.0,95226.0,0.0008616]
[1732799152511,0.11669773,95232.0,95226.0,0.0008616]
[1732799153671,0.11669773,95232.0,95231.0,0.0014]
[1732799153882,0.11669773,95232.0,95231.0,0.0024]
[1732799154885,0.0100292,95232.0,95231.0,0.0024]
[1732799155099,0.00986176,95232.0,95231.0,0.0024]
[1732799155554,0.105,95239.0,95232.0,0.105006]
[1732799155799,0.00166253,95240.0,95231.0,0.00896668]
[1732799156046,0.0098684,95251.0,95232.0,0.00656644]
[1732799156047,0.209983,95246.0,95232.0,0.00656644]
[1732799156270,0.105004,95235.0,95233.0,0.00656644]
[1732799156494,0.105004,95235.0,95234.0,0.00656644]
[1732799157256,0.105001,95237.0,95232.0,0.105006]
[1732799157490,0.105002,95236.0,95232.0,0.105006]
[1732799157704,0.105004,95234.0,95231.0,0.0004]
[1732799157918,0.00166253,95239.0,95231.0,0.0004]
[1732799158149,0.105003,95235.0,95234.0,0.002]
[1732799158813,0.106003,95235.0,95234.0,0.002]
[1732799159688,0.105006,95233.0,95231.0,0.0012618]
[1732799159914,0.211007,95235.0,95231.0,0.0032618]
[1732799160339,0.105006,95232.0,95231.0,0.0032618]
[1732799160557,0.105006,95232.0,95231.0,0.00782862]
[1732799160810,0.105006,95232.0,95231.0,0.0012618]
[1732799161043,0.14880666,95232.0,95231.0,0.0012618]
[1732799161289,0.2533144,95232.0,95231.0,0.0012618]
[1732799161505,0.25165187,95232.0,95231.0,0.0052618]
[1732799161722,0.25165187,95232.0,95231.0,0.0012618]
[1732799161957,0.42465187,95232.0,95231.0,0.0012618]
[1732799162170,0.42465187,95232.0,95231.0,0.0032618]
[1732799162643,0.43283989,95232.0,95231.0,0.0032618]
[1732799163087,0.36603923,95232.0,95231.0,0.0032618]
[1732799163760,0.36603923,95232.0,95231.0,0.0052618]
[1732799164223,0.38903923,95232.0,95231.0,0.0012618]
[1732799164457,0.38903923,95232.0,95231.0,0.0022618]
[1732799164665,0.47494405,95232.0,95231.0,0.0022618]
[1732799164870,0.47494405,95232.0,95231.0,0.0012618]
[1732799165117,0.48294405,95232.0,95231.0,0.0022618]
[1732799165601,0.47494405,95232.0,95231.0,0.0012618]
[1732799165853,0.47494405,95232.0,95231.0,0.0022618]
[1732799165854,0.47694405,95232.0,95231.0,0.0022618]
[1732799166087,0.47694405,95232.0,95194.0,0.0008616]
[1732799166088,0.278028,95212.0,95194.0,0.0008616]
[1732799166312,0.39087321,95212.0,95194.0,0.0008616]
[1732799166560,0.41899006,95212.0,95211.0,1e-06]
[1732799166798,0.41899006,95212.0,95194.0,0.0008616]
[1732799166799,0.115046,95196.0,95194.0,0.0008616]
[1732799167050,0.31385374,95196.0,95194.0,0.0008616]
[1732799167269,0.52140567,95196.0,95194.0,0.0008616]
[1732799167505,0.51140567,95196.0,95194.0,0.0008616]
[1732799168187,0.52640567,95196.0,95194.0,0.0008616]
[1732799168403,0.53754734,95196.0,95194.0,0.0008616]
[1732799168656,0.53254734,95196.0,95194.0,0.0008616]
[1732799168873,0.54354734,95196.0,95194.0,0.0008616]
[1732799170494,0.55354734,95196.0,95194.0,0.0008616]
[1732799172742,0.39999432,95196.0,95194.0,0.0008616]
[1732799174363,0.37699432,95196.0,95194.0,0.0008616]
[1732799175707,0.22699432,95196.0,95194.0,0.0008616]
[1732799176375,0.01910311,95196.0,95194.0,0.0008616]
[1732799176595,0.01510311,95196.0,95194.0,0.0008616]
[1732799176817,0.12014911,95196.0,95194.0,0.0008616]
[1732799177034,0.11614911,95196.0,95194.0,0.0008616]
[1732799177527,0.12114911,95196.0,95194.0,0.0008616]
[1732799178177,0.11614911,95196.0,95194.0,0.0008616]
[1732799178407,0.11314911,95196.0,95194.0,0.0008616]
[1732799178893,0.11314911,95196.0,95195.0,0.0154256]
[1732799179117,0.26580551,95196.0,95195.0,0.0154256]
[1732799179330,0.26580551,95196.0,95195.0,0.0144256]
[1732799179331,0.21599432,95196.0,95195.0,0.0144256]
[1732799180268,0.21799432,95196.0,95195.0,0.0144256]
[1732799180485,0.21599432,95196.0,95195.0,0.0144256]
[1732799180918,0.21799432,95196.0,95195.0,0.0144256]
[1732799181159,0.0099468,95215.0,95195.0,0.0243221]
[1732799181393,0.0099468,95215.0,95195.0,0.0144256]
[1732799181394,0.00660338,95196.0,95195.0,0.0144256]
[1732799181636,0.11264938,95196.0,95195.0,0.0144256]
[1732799181861,0.106046,95196.0,95195.0,0.0144256]
[1732799182079,0.11129886,95196.0,95195.0,0.0144256]
[1732799182303,0.11129886,95196.0,95195.0,0.0152884]
[1732799182565,0.11229886,95196.0,95195.0,0.0152884]
[1732799183018,0.00725286,95196.0,95195.0,0.0973884]
[1732799183236,0.00725286,95196.0,95195.0,0.2024354]
[1732799183237,0.00625286,95196.0,95195.0,0.2024354]
[1732799183704,0.106046,95196.0,95195.0,0.0973884]
[1732799183926,0.105043,95199.0,95195.0,0.0973884]
[1732799184162,0.21174453,95201.0,95195.0,0.0973884]
[1732799184163,0.00525286,95196.0,95195.0,0.0973884]
[1732799184382,0.11029886,95196.0,95195.0,0.0973884]
[1732799184604,0.105046,95196.0,95195.0,0.0973884]
[1732799184822,0.11029886,95196.0,95195.0,0.0152884]
[1732799185323,0.00525286,95196.0,95195.0,0.1203354]
[1732799185556,0.00525286,95196.0,95195.0,0.1213354]
[1732799185792,0.210053,95214.0,95205.0,0.105035]
[1732799186010,0.31290021,95213.0,95200.0,0.210081]
[1732799186225,0.31290021,95213.0,95205.0,0.105036]
[1732799186226,0.105031,95210.0,95205.0,0.105036]
[1732799186463,0.105031,95210.0,95201.0,0.210081]
[1732799186464,0.10284521,95213.0,95203.0,0.105038]
[1732799186691,0.105038,95204.0,95195.0,0.0162884]
[1732799186912,0.21172053,95212.0,95195.0,0.0152884]
[1732799187138,0.105031,95210.0,95204.0,0.105037]
[1732799187350,0.00166253,95211.0,95208.0,0.105032]
[1732799187583,0.210049,95216.0,95209.0,0.10503]
[1732799187808,0.210029,95225.0,95195.0,0.0152884]
[1732799187809,0.21171353,95215.0,95198.0,0.00185907]
[1732799188046,0.00166253,95215.0,95210.0,0.0786]
[1732799188306,0.002,95214.0,95210.0,0.0786]
[1732799189012,0.00166253,95217.0,95210.0,0.0786]
[1732799189013,0.11028086,95213.0,95210.0,0.0786]
[1732799189694,0.11028086,95213.0,95198.0,0.210087]
[1732799189695,0.00525286,95213.0,95198.0,0.210086]
[1732799189938,0.210066,95209.0,95199.0,0.0786]
[1732799190161,0.210069,95207.0,95199.0,0.0786]
[1732799190407,0.210088,95198.0,95191.0,0.0004]
[1732799190638,0.10284521,95207.0,95191.0,0.0004]
[1732799190639,0.210075,95204.0,95191.0,0.0004]
[1732799190854,0.0751,95218.0,95191.0,0.0004]
[1732799190855,0.00525286,95197.0,95191.0,0.0004]
[1732799191068,0.105046,95196.0,95191.0,0.0004]
[1732799191285,0.11196139,95196.0,95191.0,0.0004]
[1732799194089,0.29931246,95196.0,95191.0,0.0004]
[1732799194301,0.57364993,95196.0,95191.0,0.0004]
[1732799194528,0.57464993,95196.0,95191.0,0.0004]
[1732799195229,0.57537573,95196.0,95191.0,0.0004]
[1732799195485,0.59837573,95196.0,95191.0,0.0004]
[1732799195740,0.61537573,95196.0,95191.0,0.0004]
[1732799196659,0.61937573,95196.0,95191.0,0.0004]
[1732799197770,0.62937573,95196.0,95191.0,0.0004]
[1732799198684,0.62537573,95196.0,95191.0,0.0004]
[1732799198922,0.61837573,95196.0,95191.0,0.0004]
[1732799199165,0.63237573,95196.0,95195.0,0.0162884]
[1732799201241,0.53786987,95196.0,95195.0,0.0162884]
[1732799201470,0.41186987,95196.0,95195.0,0.0162884]
[1732799201692,0.40186987,95196.0,95195.0,0.0162884]
[1732799201873,0.39686987,95196.0,95195.0,0.0152884]
[1732799202126,0.38786987,95196.0,95195.0,0.0152884]
[1732799202351,0.40186987,95196.0,95195.0,0.0152884]
[1732799202800,0.38786987,95196.0,95195.0,0.0152884]
[1732799203040,0.39086987,95196.0,95195.0,0.0152884]
[1732799203270,0.36786987,95196.0,95195.0,0.0152884]
[1732799203492,0.21786987,95196.0,95195.0,0.0152884]
[1732799203709,0.22814684,95196.0,95195.0,0.0152884]
[1732799204168,0.21786987,95196.0,95195.0,0.0152884]
[1732799204867,0.22586987,95196.0,95195.0,0.0152884]
[1732799205095,0.22286987,95196.0,95195.0,0.0152884]
[1732799205304,0.21486987,95196.0,95195.0,0.0152884]
[1732799205535,0.24686987,95196.0,95195.0,0.0152884]
[1732799205745,0.26314252,95196.0,95195.0,0.0152884]
[1732799205958,0.25914252,95196.0,95195.0,0.0152884]
[1732799206376,0.25714252,95196.0,95195.0,0.0152884]
[1732799206794,0.26314252,95196.0,95195.0,0.0152884]
[1732799207014,0.26014252,95196.0,95195.0,0.0152884]
[1732799208126,0.24386987,95196.0,95195.0,0.0152884]